[Event "2nd Kalyan Dombivali 2019"]
[Site "Kalyan"]
[Date "2019.02.02"]
[Round "8"]
[White "Shrey Nilkant"]
[Black "Sparsh Khandelwal"]
[Result "0-1"]
[ECO "B23"]
[WhiteElo "1371"]
[BlackElo "1823"]
[Annotator "NA RC"]
[PlyCount "57"]
[EventDate "2019.01.28"]
[EventType "swiss"]
[EventRounds "10"]
[EventCountry "IND"]
[SourceTitle "playchess.com"]
[Source "ChessBase"]
[SourceQuality "1"]
[TimeControl "5400+30"]

{[%evp 14,57,-7,-24,-11,-24,-22,-35,-19,-33,-35,-37,-38,-54,-41,-47,-44,-63,-43,-91,-54,-102,-91,-94,-85,-104,-90,-104,-88,-119,-60,-73,-61,-78,-54,-97,0,-16,-18,0,0,0,-23,-589,-610,-592]} 1. e4 {[%emt 0:00:36]} c5 {[%emt 0:03:40]} 2. Nc3 {[%emt 0:01:41]} g6 {[%emt 0:00:09]} 3. f4 {[%emt 0:00:06]} Bg7 {[%emt 0:00:05]} 4. Nf3 {[%emt 0:00:04]} Nc6 {[%emt 0:00:04]} 5. Bb5 {[%emt 0:00:14]} Nd4 {[%emt 0:00:09]} 6. O-O {[%emt 0:00:20]} a6 {[%emt 0:00:41]} 7. Be2 {[%emt 0:02:42]} d6 {[%emt 0:00:36]} 8. d3 {[%emt 0:01:21]} e6 {[%emt 0:01:06]} 9. Nxd4 {[%emt 0:08:43]} cxd4 {[%emt 0:00:37]} 10. Nb1 $1 {[%emt 0:00:38]} Ne7 {[%emt 0:03:37]} 11. Nd2 {[%emt 0:01:37]} O-O {[%emt 0:01:51]} 12. g3 {[%emt 0:04:50]} Bd7 {[%emt 0:05:37]} 13. Bf3 {[%emt 0:02:14]} Qc7 {[%emt 0:01:34]} 14. Rf2 {[%emt 0:06:49]} Rfc8 {[%emt 0:00:42]} 15. Nf1 {[%emt 0:00:46]} a5 {[%emt 0:03:40]} 16. b3 {[%emt 0:07:22]} Ra6 {[%emt 0:04:38]} 17. Qe1 {[%emt 0:15:31]} Nc6 {[%emt 0:08:20]} 18. Bd2 {[%emt 0:11:50]} Na7 {[%emt 0:01:49]} 19. g4 {[%emt 0:07:55]} a4 {[%emt 0:05:00]} 20. Ng3 {[%emt 0:14:59]} Nb5 {[%emt 0:06:54]} 21. e5 {[%emt 0:03:54]} d5 {[%emt 0:02:24]} (21... dxe5 $17 22. fxe5 Bc6) 22. Bb4 {[%emt 0:01:16]} Bf8 {[%emt 0:02:29]} 23. Bxf8 {[%emt 0:00:24]} Rxf8 {[%emt 0:00:04]} 24. f5 {[%emt 0:00:18]} (24. Kg2 $15) 24... Qc3 {[%emt 0:00:21]} ({Worse is} 24... gxf5 25. Nh5 $16) (24... axb3 $17 25. cxb3 Rfa8) 25. Qc1 {[%emt 0:01:03]} axb3 {[%emt 0:03:03] [#]} 26. Nh5 $1 {[%emt 0:01:21]} exf5 {[%emt 0:06:59]} ({Worse is} 26... b2 {[#]} 27. Qh6 $3 {[%mdl 512]} bxa1=Q+ 28. Rf1 gxh5 29. f6 Qxf1+ {[%mdl 64] Remove Defender} 30. Kxf1 Qa1+ 31. Kg2 Qh1+ 32. Kxh1 hxg4 33. Qg7#) (26... gxh5 $5 27. Qg5+ $8 {[%mdl 64] Double Attack} Kh8 28. Qf6+ Kg8 29. Qg5+ {[%mdl 64] Double Attack} Kh8 30. Qf6+ Kg8 31. Qg5+ $11 {[%mdl 64] Double Attack}) 27. Nf6+ $1 {[%emt 0:01:00]} Kg7 $1 {[%emt 0:00:04]} 28. Nxd5 $19 (28. cxb3 $11 {and White stays safe.} Qxc1+ 29. Rxc1) 28... b2 {[%emt 0:00:09] Double Attack} 29. Nxc3 {[%emt 0:04:20]} 0-1

[Event "2nd Kalyan Dombivali 2019"]
[Site "Kalyan"]
[Date "2019.02.02"]
[Round "8"]
[White "Lad Mandar Pradip"]
[Black "Shivshankar Iyer S"]
[Result "1-0"]
[ECO "D60"]
[WhiteElo "1364"]
[BlackElo "1619"]
[Annotator "NA RC"]
[PlyCount "71"]
[EventDate "2019.01.28"]
[EventType "swiss"]
[EventRounds "10"]
[EventCountry "IND"]
[SourceTitle "playchess.com"]
[Source "ChessBase"]
[SourceQuality "1"]
[TimeControl "5400+30"]

1. d4 {[%emt 0:00:46]} d5 {[%emt 0:00:00]} 2. c4 {[%emt 0:00:17]} e6 {[%emt 0:00:00]} 3. Nc3 {[%emt 0:00:32]} Nf6 {[%emt 0:00:00]} 4. Bg5 {[%emt 0:00:05]} Be7 {[%emt 0:00:00]} 5. e3 {[%emt 0:00:03]} Nbd7 {[%emt 0:00:20]} 6. Nf3 {[%emt 0:01:12]} O-O {[%emt 0:00:07]} 7. Bd3 {[%emt 0:02:57]} c5 {[%emt 0:01:57]} 8. O-O {[%emt 0:01:43]} cxd4 {[%emt 0:00:42]} 9. exd4 {[%emt 0:12:12]} dxc4 {[%emt 0:00:55]} 10. Bxc4 {[%emt 0:00:07]} b6 {[%emt 0:00:01]} 11. d5 {[%emt 0:01:52]} Nc5 {[%emt 0:02:02]} 12. Re1 {[%emt 0:30:54]} a5 {[%emt 0:13:11]} 13. Nd4 {[%emt 0:10:20]} Bd7 {[%emt 0:26:39]} 14. dxe6 {[%emt 0:05:32]} fxe6 {[%emt 0:01:08]} 15. Nxe6 {[%emt 0:05:39]} Bxe6 {[%emt 0:00:09]} 16. Bxe6+ {[%emt 0:00:08]} Nxe6 {[%emt 0:00:30]} 17. Rxe6 {[%emt 0:00:12]} Bc5 {[%emt 0:02:15]} 18. Qxd8 {[%emt 0:02:34]} Raxd8 {[%emt 0:00:05]} 19. Bxf6 {[%emt 0:00:22]} Rxf6 {[%emt 0:03:26]} 20. Rxf6 {[%emt 0:00:06]} gxf6 {[%emt 0:00:05]} 21. Rd1 {[%emt 0:01:15]} Rxd1+ {[%emt 0:01:30]} 22. Nxd1 {[%emt 0:00:05]} Kf7 {[%emt 0:01:09]} 23. Kf1 {[%emt 0:00:21]} Ke6 {[%emt 0:00:16]} 24. Ke2 {[%emt 0:00:15]} Ke5 {[%emt 0:00:22]} 25. Kd3 {[%emt 0:01:42]} b5 {[%emt 0:00:26]} 26. g3 {[%emt 0:01:52]} Bd4 {[%emt 0:00:47]} 27. a3 {[%emt 0:01:39]} f5 {[%emt 0:00:06]} 28. f4+ {[%emt 0:00:51]} Kd5 {[%emt 0:00:10]} 29. Ne3+ {[%emt 0:04:12]} Bxe3 {[%emt 0:01:13]} 30. Kxe3 {[%emt 0:00:04]} h5 {[%emt 0:00:05]} 31. b3 {[%emt 0:02:56]} Kc5 {[%emt 0:00:42]} 32. Kd3 {[%emt 0:02:37]} Kd5 {[%emt 0:00:35]} 33. b4 {[%emt 0:00:44]} a4 {[%emt 0:04:17]} 34. h3 {[%emt 0:01:02]} Ke6 {[%emt 0:00:05]} 35. Kd4 {[%emt 0:00:05]} Kd6 {[%emt 0:00:05]} 36. h4 {[%emt 0:00:10]} 1-0

[Event "2nd Kalyan Dombivali 2019"]
[Site "Kalyan"]
[Date "2019.02.02"]
[Round "8"]
[White "Pethe Varad"]
[Black "Kshatriya Nitin Vekhande"]
[Result "1/2-1/2"]
[ECO "A52"]
[WhiteElo "1359"]
[BlackElo "1544"]
[Annotator "NA RC"]
[PlyCount "132"]
[EventDate "2019.01.28"]
[EventType "swiss"]
[EventRounds "10"]
[EventCountry "IND"]
[SourceTitle "playchess.com"]
[Source "ChessBase"]
[SourceQuality "1"]
[TimeControl "5400+30"]

1. d4 {[%emt 0:00:00]} Nf6 {[%emt 0:00:00]} 2. c4 {[%emt 0:00:00]} e5 {[%emt 0:00:00]} 3. dxe5 {[%emt 0:00:07]} Ng4 {[%emt 0:00:00]} 4. Nf3 {[%emt 0:00:11]} Nc6 {[%emt 0:00:01]} 5. Bf4 {[%emt 0:00:25]} Bb4+ {[%emt 0:00:08]} 6. Nc3 {[%emt 0:00:52]} Qe7 {[%emt 0:00:10]} 7. Qd5 {[%emt 0:00:46]} f6 {[%emt 0:00:45]} 8. exf6 {[%emt 0:04:51]} Bxc3+ {[%emt 0:00:27]} 9. bxc3 {[%emt 0:00:13]} Nxf6 {[%emt 0:00:43]} 10. Qd3 {[%emt 0:03:02]} d6 {[%emt 0:00:12]} 11. e3 {[%emt 0:00:39]} O-O {[%emt 0:00:22]} 12. Be2 {[%emt 0:00:17]} Ne4 {[%emt 0:00:09]} 13. O-O {[%emt 0:01:59]} Bf5 {[%emt 0:00:16]} 14. Qd5+ {[%emt 0:02:15]} Kh8 {[%emt 0:00:43]} 15. Rac1 {[%emt 0:01:27]} Nc5 {[%emt 0:16:02]} 16. Nd4 {[%emt 0:03:09]} Be4 {[%emt 0:01:35]} 17. Qg5 {[%emt 0:02:06]} Qf7 {[%emt 0:07:33]} 18. Rfd1 {[%emt 0:07:43]} Nxd4 {[%emt 0:10:51]} 19. cxd4 {[%emt 0:01:15]} Ne6 {[%emt 0:00:05]} 20. Qg4 {[%emt 0:05:01]} Nxf4 {[%emt 0:00:26]} 21. exf4 {[%emt 0:01:07]} Qxf4 {[%emt 0:00:54]} 22. Qxf4 {[%emt 0:01:24]} Rxf4 {[%emt 0:00:08]} 23. Bd3 {[%emt 0:01:31]} Bxd3 {[%emt 0:01:17]} 24. Rxd3 {[%emt 0:00:02]} Re8 {[%emt 0:00:27]} 25. g3 {[%emt 0:01:24]} Rfe4 {[%emt 0:00:16]} 26. Rcd1 {[%emt 0:01:25]} Re2 {[%emt 0:01:27]} 27. R3d2 {[%emt 0:01:04]} Rxd2 {[%emt 0:02:18]} 28. Rxd2 {[%emt 0:00:02]} Re1+ {[%emt 0:00:44]} 29. Kg2 {[%emt 0:00:08]} Kg8 {[%emt 0:02:04]} 30. Rb2 {[%emt 0:01:54]} b6 {[%emt 0:00:19]} 31. c5 {[%emt 0:01:44]} Rd1 {[%emt 0:04:47]} 32. cxb6 {[%emt 0:01:11]} cxb6 {[%emt 0:03:07]} 33. Rb4 {[%emt 0:00:24]} Rd2 {[%emt 0:01:15]} 34. a4 {[%emt 0:00:22]} Kf7 {[%emt 0:00:44]} 35. Kf3 {[%emt 0:01:43]} Ke6 {[%emt 0:00:18]} 36. Ke3 {[%emt 0:00:55]} Ra2 {[%emt 0:00:53]} 37. h4 {[%emt 0:00:41]} a5 {[%emt 0:02:39]} 38. Rxb6 {[%emt 0:00:30]} Rxa4 {[%emt 0:00:07]} 39. Rb7 {[%emt 0:00:56]} Kf6 {[%emt 0:12:01]} 40. Rd7 {[%emt 0:00:31]} Ra1 {[%emt 0:00:13]} 41. Rxd6+ {[%emt 0:00:13]} Kf7 {[%emt 0:00:03]} 42. Ra6 {[%emt 0:01:47]} a4 {[%emt 0:00:30]} 43. d5 {[%emt 0:03:54]} a3 {[%emt 0:01:08]} 44. Kf4 {[%emt 0:01:13]} a2 {[%emt 0:01:17]} 45. f3 {[%emt 0:01:21]} Rd1 {[%emt 0:00:56]} 46. Rxa2 {[%emt 0:01:07]} Rxd5 {[%emt 0:00:08]} 47. Ra7+ {[%emt 0:02:01]} Kf6 {[%emt 0:00:05]} 48. Ra6+ {[%emt 0:00:24]} Kf7 {[%emt 0:00:04]} 49. Ke4 {[%emt 0:00:10]} Rb5 {[%emt 0:00:04]} 50. Rd6 {[%emt 0:01:08]} Ra5 {[%emt 0:00:23]} 51. Rd5 {[%emt 0:02:18]} Ra1 {[%emt 0:00:34]} 52. Kf5 {[%emt 0:00:44]} Ra6 {[%emt 0:00:41]} 53. Rd7+ {[%emt 0:00:21]} Kg8 {[%emt 0:00:26]} 54. f4 {[%emt 0:01:10]} h6 {[%emt 0:00:33]} 55. g4 {[%emt 0:01:55]} Kh7 {[%emt 0:01:06]} 56. Re7 {[%emt 0:02:12]} Rf6+ {[%emt 0:00:49]} 57. Ke5 {[%emt 0:00:14]} Ra6 {[%emt 0:02:10]} 58. g5 {[%emt 0:02:21]} hxg5 {[%emt 0:00:24]} 59. hxg5 {[%emt 0:00:21]} Ra5+ {[%emt 0:00:06]} 60. Ke6 {[%emt 0:02:30]} Kg6 {[%emt 0:09:39]} 61. f5+ {[%emt 0:00:55]} Rxf5 {[%emt 0:00:21]} 62. Rxg7+ {[%emt 0:00:09]} Kxg7 {[%emt 0:00:05]} 63. Kxf5 {[%emt 0:00:04]} Kf7 {[%emt 0:00:04]} 64. g6+ {[%emt 0:00:33]} Kg7 {[%emt 0:00:04]} 65. Kg5 {[%emt 0:00:04]} Kg8 {[%emt 0:00:05]} 66. Kh6 {[%emt 0:00:45]} Kh8 {[%emt 0:00:34]} 1/2-1/2

[Event "2nd Kalyan Dombivali 2019"]
[Site "Kalyan"]
[Date "2019.02.02"]
[Round "8"]
[White "Manthan Vijayrao Kale"]
[Black "Awade Pradeep"]
[Result "0-1"]
[ECO "B06"]
[WhiteElo "1228"]
[BlackElo "1538"]
[Annotator "NA"]
[PlyCount "88"]
[EventDate "2019.01.28"]
[EventType "swiss"]
[EventRounds "10"]
[EventCountry "IND"]
[SourceTitle "playchess.com"]
[Source "ChessBase"]
[SourceQuality "1"]
[TimeControl "5400+30"]

1. e4 {[%emt 0:00:00]} g6 {[%emt 0:06:28]} 2. d4 {[%emt 0:00:00]} Bg7 {[%emt 0:00:04]} 3. Nf3 {[%emt 0:00:39]} d6 {[%emt 0:00:02]} 4. Bc4 {[%emt 0:00:55]} Nf6 {[%emt 0:00:44]} 5. Nc3 {[%emt 0:02:29]} c6 {[%emt 0:01:20]} 6. e5 {[%emt 0:05:51]} dxe5 {[%emt 0:00:37]} 7. dxe5 {[%emt 0:00:22]} Qxd1+ {[%emt 0:01:12]} 8. Kxd1 {[%emt 0:00:07]} Ng4 {[%emt 0:01:26]} 9. Rf1 {[%emt 0:01:23]} Nxe5 {[%emt 0:00:49]} 10. Nxe5 {[%emt 0:01:46]} Bxe5 {[%emt 0:00:03]} 11. Re1 {[%emt 0:00:40]} Nd7 {[%emt 0:17:56]} 12. Ne4 {[%emt 0:07:40]} O-O {[%emt 0:02:39]} 13. c3 {[%emt 0:03:01]} Nb6 {[%emt 0:04:45]} 14. Bb3 {[%emt 0:01:22]} Rd8+ {[%emt 0:02:15]} 15. Ke2 {[%emt 0:01:31]} Bf5 {[%emt 0:02:22]} 16. Kf1 {[%emt 0:00:39]} Bxe4 {[%emt 0:25:11]} 17. Rxe4 {[%emt 0:00:57]} Bf6 {[%emt 0:00:16]} 18. Be3 {[%emt 0:04:00]} Nd5 {[%emt 0:03:25]} 19. Bd4 {[%emt 0:02:48]} Bxd4 {[%emt 0:00:47]} 20. Rxd4 {[%emt 0:00:27]} Nf6 {[%emt 0:02:40]} 21. Rad1 {[%emt 0:01:02]} Rxd4 {[%emt 0:00:08]} 22. Rxd4 {[%emt 0:00:10]} Kf8 {[%emt 0:00:30]} 23. Ke2 {[%emt 0:01:34]} e6 {[%emt 0:00:01]} 24. Rd3 {[%emt 0:05:14]} Ke7 {[%emt 0:00:20]} 25. h3 {[%emt 0:00:29]} Rd8 {[%emt 0:00:26]} 26. Re3 {[%emt 0:00:21]} Nd5 {[%emt 0:00:23]} 27. Bxd5 {[%emt 0:00:13]} Rxd5 {[%emt 0:00:18]} 28. g4 {[%emt 0:00:30]} Kd6 {[%emt 0:03:31]} 29. f4 {[%emt 0:05:04]} c5 {[%emt 0:04:00]} 30. h4 {[%emt 0:05:35]} h5 {[%emt 0:01:01]} 31. c4 {[%emt 0:03:21]} Rd4 {[%emt 0:00:38]} 32. gxh5 {[%emt 0:00:07]} gxh5 {[%emt 0:00:14]} 33. Rd3 {[%emt 0:01:20]} Rxd3 {[%emt 0:01:00]} 34. Kxd3 {[%emt 0:00:11]} f5 {[%emt 0:01:46]} 35. a3 {[%emt 0:00:24]} b6 {[%emt 0:02:42]} 36. b3 {[%emt 0:02:31]} a6 {[%emt 0:00:25]} 37. b4 {[%emt 0:00:40]} e5 {[%emt 0:02:26]} 38. Ke3 {[%emt 0:04:20]} a5 {[%emt 0:00:26]} 39. b5 {[%emt 0:00:30]} a4 {[%emt 0:00:11]} 40. Kf3 {[%emt 0:00:13]} Ke6 {[%emt 0:00:02]} 41. Ke3 {[%emt 0:01:32]} exf4+ {[%emt 0:00:03]} 42. Kxf4 {[%emt 0:00:09]} Kf6 {[%emt 0:00:03]} 43. Kf3 {[%emt 0:00:11]} Ke5 {[%emt 0:00:02]} 44. Ke3 {[%emt 0:00:11]} f4+ {[%emt 0:00:03] Kd4+} 0-1

[Event "2nd Kalyan Dombivali 2019"]
[Site "Kalyan"]
[Date "2019.02.02"]
[Round "9"]
[White "Kumar, Gaurav"]
[Black "Snehal, Bhosale"]
[Result "1-0"]
[ECO "C45"]
[WhiteElo "2128"]
[BlackElo "2135"]
[Annotator "NA RC"]
[PlyCount "81"]
[EventDate "2019.01.28"]
[EventType "swiss"]
[EventRounds "10"]
[EventCountry "IND"]
[SourceTitle "playchess.com"]
[Source "ChessBase"]
[SourceQuality "1"]
[TimeControl "5400+30"]

{[%evp 22,78,23,25,20,4,7,22,21,32767,32767,5,0,0,0,-9,-10,32767,-12,32767,32767,32767,32767,32767,32767,32767,14,32767,18,0,0,0,32767,32767,32767,0,32767,17,43,15,133,32767,193,184,351,66,15,32767,0,0,0,0,4706,4710,6083,29980,29976,29982,29982]} 1. e4 {[%emt 0:00:00]} e5 {[%emt 0:00:00]} 2. Nf3 {[%emt 0:00:00]} Nc6 {[%emt 0:00:07]} 3. d4 {[%emt 0:00:08]} exd4 {[%emt 0:00:09]} 4. Nxd4 {[%emt 0:00:07]} Bc5 {[%emt 0:00:09]} 5. Nxc6 {[%emt 0:00:14]} bxc6 {[%emt 0:00:10]} 6. Bd3 {[%emt 0:00:07]} Qh4 {[%emt 0:08:14] C45: Scotch Game} 7. Qe2 {[%emt 0:00:59]} Ne7 {[%emt 0:03:20]} 8. Be3 $146 {[%emt 0:06:15]} ({Predecessor:} 8. Nc3 O-O 9. Be3 Bb6 10. O-O d5 11. exd5 Nxd5 12. Bd2 Bd4 13. Rae1 Nb4 14. Qe4 Qxe4 15. Bxe4 {1-0 (27) Carlsen,M (2821)-Caruana,F (2711) Biel 2011}) 8... Bxe3 {[%emt 0:01:23]} 9. Qxe3 {[%emt 0:00:18]} O-O {[%emt 0:01:24]} 10. Nd2 {[%emt 0:07:42]} d6 {[%emt 0:02:16]} 11. O-O {[%emt 0:03:10]} Qf6 {[%emt 0:10:18]} 12. e5 {[%emt 0:16:33]} dxe5 {[%emt 0:10:15]} 13. Ne4 {[%emt 0:14:00]} Qg6 {[%emt 0:05:51]} 14. Ng3 {[%emt 0:09:32]} Qd6 {[%emt 0:22:17]} 15. Rfe1 {[%emt 0:15:44]} f6 {[%emt 0:01:56]} 16. f4 {[%emt 0:10:02]} exf4 {[%emt 0:11:57]} 17. Qxe7 {[%emt 0:01:26]} fxg3 {[%emt 0:02:55]} 18. Bc4+ {[%emt 0:01:16]} Kh8 {[%emt 0:00:07]} 19. Rad1 {[%emt 0:00:10]} gxh2+ {[%emt 0:01:09]} 20. Kh1 {[%emt 0:00:01]} Qxe7 {[%emt 0:01:17]} 21. Rxe7 {[%emt 0:00:05]} Bg4 {[%emt 0:01:16]} 22. Rd4 {[%emt 0:00:15]} Bf5 {[%emt 0:01:26]} 23. Bd3 {[%emt 0:02:15]} Bxd3 {[%emt 0:10:13]} 24. Rxd3 {[%emt 0:00:09]} Rad8 {[%emt 0:00:12]} 25. Rxd8 {[%emt 0:01:23]} Rxd8 {[%emt 0:00:02]} 26. Rxc7 {[%emt 0:00:02]} h5 {[%emt 0:00:20]} 27. Rxc6 {[%emt 0:00:47]} Kh7 {[%emt 0:00:04]} 28. Kxh2 {[%emt 0:02:00]} Kh6 {[%emt 0:01:03]} 29. b4 {[%emt 0:01:51]} Rd4 {[%emt 0:00:55]} 30. c3 {[%emt 0:00:38]} Rf4 {[%emt 0:00:17]} (30... Rd2 $11) 31. Ra6 {[%emt 0:00:50]} g5 $2 {[%emt 0:01:56]} (31... Rh4+ $11 {and Black is okay.} 32. Kg1 Rc4) 32. Rxa7 {[%emt 0:01:29]} h4 $2 {[%emt 0:00:13]} (32... Rf1 $16) 33. Kg1 $2 {[%emt 0:04:22]} ({White must play} 33. b5 $18 g4 34. b6) 33... g4 {[%emt 0:00:49]} 34. Rd7 {[%emt 0:00:43]} g3 $1 {[%emt 0:00:17]} 35. Rd1 {[%emt 0:01:49]} Rf2 $1 {[%emt 0:01:26]} 36. Rb1 {[%emt 0:00:27]} Kg5 $2 {[%emt 0:01:02]} (36... f5 $11) 37. b5 {[%emt 0:00:14]} Kg4 {[%emt 0:00:19]} 38. b6 {[%emt 0:00:46]} h3 {[%emt 0:01:20]} 39. Rb4+ {[%emt 0:00:12]} Kg5 {[%emt 0:00:27]} 40. gxh3 {[%emt 0:00:06]} Rxa2 {[%emt 0:00:33]} 41. b7 {[%emt 0:00:06]} 1-0

[Event "2nd Kalyan Dombivali 2019"]
[Site "Kalyan"]
[Date "2019.02.02"]
[Round "9"]
[White "Ahmed, Feroz"]
[Black "Kasar Prashant"]
[Result "1-0"]
[ECO "A10"]
[WhiteElo "1919"]
[BlackElo "1495"]
[Annotator "NA RC"]
[PlyCount "55"]
[EventDate "2019.01.28"]
[EventType "swiss"]
[EventRounds "10"]
[EventCountry "IND"]
[SourceTitle "playchess.com"]
[Source "ChessBase"]
[SourceQuality "1"]
[TimeControl "5400+30"]

1. c4 {[%emt 0:00:00]} g6 {[%emt 0:00:00]} 2. g3 {[%emt 0:00:00]} Bg7 {[%emt 0:00:01]} 3. d4 {[%emt 0:00:00]} d6 {[%emt 0:00:39]} 4. Bg2 {[%emt 0:00:00]} c6 5. e4 {[%emt 0:00:58]} Nf6 {[%emt 0:00:44]} 6. Nc3 {[%emt 0:00:16]} O-O {[%emt 0:00:39]} 7. Nge2 {[%emt 0:01:04]} e5 {[%emt 0:02:10]} 8. O-O {[%emt 0:00:29]} Re8 {[%emt 0:03:22]} 9. h3 {[%emt 0:02:49]} Nbd7 {[%emt 0:00:39]} 10. d5 {[%emt 0:01:15]} c5 {[%emt 0:04:53]} 11. f4 {[%emt 0:00:52]} Nb6 {[%emt 0:02:03]} 12. Qd3 {[%emt 0:07:24]} exf4 {[%emt 0:03:38]} 13. gxf4 {[%emt 0:02:22]} Nh5 {[%emt 0:03:01]} 14. Bd2 {[%emt 0:04:40]} f5 {[%emt 0:02:04]} 15. Kh2 {[%emt 0:01:35]} (15. b3 $11 {keeps the balance.}) 15... fxe4 {[%emt 0:02:55]} 16. Bxe4 {[%emt 0:00:59]} Qf6 {[%emt 0:13:51]} 17. Rg1 {[%emt 0:05:15]} Kh8 {[%emt 0:07:46] [#]} 18. b3 {[%emt 0:07:14]} (18. Rg5 $1 $16) 18... Qh4 {[%emt 0:06:54]} 19. Raf1 {[%emt 0:02:44]} Bh6 $2 {[%emt 0:02:36]} (19... Nf6 $11 {and Black is okay.} 20. Qg3 Qxh3+ 21. Qxh3 Bxh3 22. Kxh3 Nxe4 23. Nxe4 Rxe4) 20. Rf3 {[%emt 0:13:31]} Rf8 {[%emt 0:09:21]} 21. Be1 {[%emt 0:07:17]} Qe7 {[%emt 0:02:45]} 22. Bxg6 {[%emt 0:01:02]} Nxf4 {[%emt 0:05:38]} 23. Nxf4 {[%emt 0:01:38]} Bxf4+ {[%emt 0:00:02] [#]} 24. Rxf4 $1 {[%emt 0:04:00]} Rxf4 {[%emt 0:01:44]} 25. Ne2 {[%emt 0:00:08]} Bf5 {[%emt 0:13:13]} 26. Bc3+ {[%emt 0:01:20]} Rd4 {[%emt 0:01:32]} 27. Bxd4+ {[%emt 0:02:08]} cxd4 {[%emt 0:00:02]} 28. Qxd4+ {[%emt 0:00:10] Bc8 Qd3 hxg6} 1-0

[Event "2nd Kalyan Dombivali 2019"]
[Site "Kalyan"]
[Date "2019.02.02"]
[Round "9"]
[White "Vijay, Anand M."]
[Black "Akshit Jha"]
[Result "1-0"]
[ECO "C15"]
[WhiteElo "1841"]
[BlackElo "1604"]
[Annotator "NA RC"]
[PlyCount "41"]
[EventDate "2019.01.28"]
[EventType "swiss"]
[EventRounds "10"]
[EventCountry "IND"]
[SourceTitle "playchess.com"]
[Source "ChessBase"]
[SourceQuality "1"]
[TimeControl "5400+30"]

1. e4 {[%emt 0:00:00]} e6 {[%emt 0:05:56]} 2. d4 {[%emt 0:00:28]} d5 {[%emt 0:00:03]} 3. Nc3 {[%emt 0:00:05]} Bb4 {[%emt 0:00:04]} 4. exd5 {[%emt 0:00:06]} exd5 {[%emt 0:00:05]} 5. Bd3 {[%emt 0:00:03]} Nf6 {[%emt 0:00:43]} 6. Bg5 {[%emt 0:00:15]} O-O {[%emt 0:02:11]} 7. Nge2 {[%emt 0:00:17]} c6 {[%emt 0:00:41]} 8. O-O {[%emt 0:00:06]} Bg4 {[%emt 0:00:27]} 9. f3 {[%emt 0:00:34]} Bh5 {[%emt 0:00:21]} 10. Ng3 {[%emt 0:00:07]} Bg6 {[%emt 0:00:11]} 11. Bxg6 {[%emt 0:00:16]} hxg6 {[%emt 0:00:17]} 12. f4 {[%emt 0:00:17]} Bxc3 {[%emt 0:04:12]} 13. bxc3 {[%emt 0:00:08]} Nbd7 {[%emt 0:00:54]} 14. f5 {[%emt 0:00:18]} Qa5 {[%emt 0:00:46]} 15. fxg6 {[%emt 0:09:41]} fxg6 {[%emt 0:01:38]} 16. Qd3 {[%emt 0:01:35]} Kh7 {[%emt 0:00:29]} 17. Rf4 {[%emt 0:00:53]} Ne4 {[%emt 0:01:48]} 18. Nxe4 {[%emt 0:02:57]} dxe4 {[%emt 0:00:17]} 19. Qh3+ {[%emt 0:00:07]} Kg8 {[%emt 0:00:06]} 20. Qe6+ {[%emt 0:00:04]} Kh7 {[%emt 0:00:52]} 21. Rh4# {[%emt 0:00:03]} 1-0

[Event "2nd Kalyan Dombivali 2019"]
[Site "Kalyan"]
[Date "2019.02.02"]
[Round "9"]
[White "Sparsh Khandelwal"]
[Black "Lad Mandar Pradip"]
[Result "1-0"]
[ECO "B22"]
[WhiteElo "1823"]
[BlackElo "1364"]
[Annotator "NA RC"]
[PlyCount "73"]
[EventDate "2019.01.28"]
[EventType "swiss"]
[EventRounds "10"]
[EventCountry "IND"]
[SourceTitle "playchess.com"]
[Source "ChessBase"]
[SourceQuality "1"]
[TimeControl "5400+30"]

1. e4 {[%emt 0:00:00]} c5 {[%emt 0:00:00]} 2. c3 {[%emt 0:01:48]} d5 {[%emt 0:00:30]} 3. exd5 {[%emt 0:00:08]} Qxd5 {[%emt 0:00:06]} 4. d4 {[%emt 0:00:04]} cxd4 {[%emt 0:00:26]} 5. cxd4 {[%emt 0:00:09]} e5 {[%emt 0:00:29]} 6. Nc3 {[%emt 0:02:40]} Qxd4 {[%emt 0:23:21]} 7. Qxd4 {[%emt 0:00:06]} exd4 {[%emt 0:00:07]} 8. Nb5 {[%emt 0:00:05]} Na6 {[%emt 0:01:43]} 9. Nxd4 {[%emt 0:00:05]} Bd7 {[%emt 0:00:49]} 10. Ngf3 {[%emt 0:03:46]} Nf6 {[%emt 0:04:44]} 11. Bd2 {[%emt 0:04:54]} (11. Bxa6 $14 bxa6 12. O-O) 11... Be7 {[%emt 0:02:23]} 12. Bc4 {[%emt 0:02:17]} Rc8 {[%emt 0:04:23]} 13. Ne5 {[%emt 0:02:52]} O-O {[%emt 0:06:19]} 14. O-O {[%emt 0:02:21]} Bd6 {[%emt 0:01:19]} 15. Nxd7 {[%emt 0:01:32]} Nxd7 {[%emt 0:01:22]} 16. Bxa6 {[%emt 0:00:50]} bxa6 {[%emt 0:00:12] [#]} 17. Nf5 $1 {[%emt 0:00:04]} Rc2 {[%emt 0:11:49]} 18. Rfd1 $16 {[%emt 0:01:58]} Bc5 {[%emt 0:13:28]} 19. b4 {[%emt 0:00:04]} Bb6 {[%emt 0:00:23]} 20. a4 {[%emt 0:00:05]} Ne5 {[%emt 0:04:10]} 21. a5 {[%emt 0:00:08]} Bc7 {[%emt 0:08:45]} 22. Ne3 {[%emt 0:02:20]} Rc6 {[%emt 0:06:32]} 23. Nd5 {[%emt 0:01:02]} Re8 {[%emt 0:03:07]} 24. Be3 {[%emt 0:00:20]} Ng4 {[%emt 0:00:32]} 25. Bf4 {[%emt 0:00:41]} Bxf4 {[%emt 0:00:12]} 26. Ne7+ {[%emt 0:00:10]} Kf8 {[%emt 0:00:20]} 27. Nxc6 {[%emt 0:00:04]} Bxh2+ {[%emt 0:00:12]} 28. Kf1 {[%emt 0:00:09]} Bf4 {[%emt 0:00:37]} 29. Rd4 {[%emt 0:02:22]} Nh2+ {[%emt 0:00:37]} 30. Kg1 {[%emt 0:00:04]} g5 {[%emt 0:00:35]} 31. Rxf4 {[%emt 0:00:32]} gxf4 {[%emt 0:00:06]} 32. Kxh2 {[%emt 0:00:03]} Re6 {[%emt 0:00:10]} 33. Rc1 {[%emt 0:01:16]} Kg7 {[%emt 0:00:43]} 34. Nxa7 {[%emt 0:00:06]} Re7 {[%emt 0:00:28]} 35. Nc6 {[%emt 0:00:32]} Re2 {[%emt 0:00:16]} 36. f3 {[%emt 0:00:08]} Re6 {[%emt 0:00:07]} 37. b5 {[%emt 0:00:11]} 1-0